Cogmind - Beta 11 X2 --- EXPLORER MODE // 2021.02.17 @ 00:21:17 // AFD2019/Pay2Buy Player: jfk Result: Self-destructed Performance ------------- Evolutions (1) 500 Regions Visited (2) 400 Robots Destroyed (17) 85 Value Destroyed (342) 342 Prototype IDs (1) 20 Alien Tech Used (0) 0 Bonus (0) 0 TOTAL SCORE: 1347 Bonus ------- None Cogmind --------- Core Integrity 379/400 Matter 168/300 Energy 265/265 System Corruption 0% Temperature Cool (0) Movement Treading (160) Location -9/Materials Parts ------- > --- POWER (1) -------- Improved Ion Engine > --- PROPULSION (4) --- Spiked Treads Spiked Treads Hover Unit Aerolev Unit > --- UTILITY (3) ------ Structural Scanner Seismic Analyzer Long-range Tractor Beam > --- WEAPON (2) ------- Flak Cannon Grenade Launcher > --- INVENTORY (10) --- Micro Nuclear Core Peak State ------------ > --- POWER ------------ Improved Ion Engine > --- PROPULSION ------- Spiked Treads Spiked Treads Hover Unit Aerolev Unit > --- UTILITY ---------- Structural Scanner Seismic Analyzer Long-range Tractor Beam > --- WEAPON ----------- Flak Cannon Grenade Launcher > --- INVENTORY -------- Micro Nuclear Core [Rating: 20] Favorites ----------- Power Improved Ion Engine Engine Improved Ion Engine Propulsion Spiked Treads Treads Spiked Treads Hover Unit Hover Unit Utility Seismic Analyzer Device Long-range Tractor Beam Processor Seismic Analyzer Weapon Grenade Launcher Ballistic Cannon Flak Cannon Launcher Grenade Launcher Special Weapon Welding Torch Build | -11 -10 -9 ------- Run | Scr Mat Mat Slots Evolved 3 | . 1 2 Power . | . . . Propulsion 2 | . 1 1 Utility 1 | . . 1 Weapon . | . . . Parts Attached 1 | . . 1 Power . | . . . Engine . | . . . Core . | . . . Reactor . | . . . Propulsion 1 | . . 1 Treads . | . . . Leg . | . . . Wheel . | . . . Hover 1 | . . 1 Flight . | . . . Utility . | . . . Device . | . . . Storage . | . . . Processor . | . . . Hackware . | . . . Protection . | . . . Artifact . | . . . Weapon . | . . . Energy Gun . | . . . Energy Cannon . | . . . Ballistic Gun . | . . . Ballistic Cannon . | . . . Launcher . | . . . Special Weapon . | . . . Impact Weapon . | . . . Slashing Weapon . | . . . Piercing Weapon . | . . . Special Melee Weapon . | . . . Unidentified Prototypes . | . . . Parts Lost 1 | . . 1 Power . | . . . Propulsion . | . . . Utility . | . . . Weapon 1 | . . 1 Highest Loss Streak 1 | . . 1 Average Slot Usage (%) 78 | . 87 72 Engine 10 | . 12 10 Treads 22 | . 25 20 Hover 1 | . . 1 Device 11 | . 12 10 Processor 10 | . 12 10 Ballistic Cannon 1 | . . 2 Launcher 10 | . 12 10 Special Weapon 9 | . 12 7 Naked Turns . | . . . Heaviest Build 18 | 12 12 18 Greatest Support 40 | 40 40 40 Greatest Overweight (x) . | . . . Average Overweight (x) . | . . . Largest Inventory Capacity 10 | 10 10 10 Average Capacity 10 | 10 10 10 Most Carried 2 | 1 1 2 Average Carried 1 | 1 1 1 Final Capacity 10 | 10 10 10 Final Carried 1 | 1 1 1 Class Distribution -------------------- 100% | Hacker-Mutant Dominant Class ---------------- Hacker-Mutant | -10/Materials Hacker-Mutant | -9/Materials Resources | -11 -10 -9 ----------- Run | Scr Mat Mat Matter Collected 236 | . 85 151 Remotely 236 | . 85 151 Salvage Created 259 | . 85 174 Parts . | . . . Haulers Intercepted . | . . . Recyclers Shooed . | . . . Parts Field Recycled . | . . . Retrieved Matter . | . . . Parts Self-Destructed . | . . . Prevented . | . . . Kills | -11 -10 -9 ------- Run | Scr Mat Mat Combat Hostiles Destroyed 11 | . 2 9 Melee 2 | . 2 . Cannons 1 | . . 1 AOE 8 | . . 8 Classes Destroyed 6 | . 1 5 Builder 3 | . . 3 Tunneler 1 | . . 1 Watcher 2 | . . 2 Swarmer 5 | . . 5 Grunt 5 | . 2 3 Sentry 1 | . . 1 Best Kill Streak 7 | . 2 7 Combat Bots Only 5 | . 2 5 Max Kills in Single Turn 2 | . 1 2 Gunslinging . | . . . Exploded 2 | . . 2 Melee 1 | . 1 . Uniques/NPCs Destroyed . | . . . Combat | -11 -10 -9 -------- Run | Scr Mat Mat Damage Taken 337 | . 152 185 Core 57 | . 36 21 Absorbed by Shields . | . . . Core Remaining (%) 92 | 100 85 . Volleys Fired 22 | . . 22 Largest 1 | . . 1 Hottest 44 | . . 44 Shots Fired 22 | . . 22 Gun . | . . . Cannon 3 | . . 3 Launcher 19 | . . 19 Special . | . . . Kinetic 3 | . . 3 Thermal . | . . . Explosive 19 | . . 19 Electromagnetic . | . . . Robot Hit Streak 8 | . . 8 Robot Miss Streak 4 | . . 4 Penetration Max . | . . . Secondary Targets . | . . . Shots Hit Robots 19 | . . 19 Core Hits 24 | . 1 23 Critical Hits . | . . . Critical Kills . | . . . Critical Parts Destroyed . | . . . Melee Attacks . | . . . Impact . | . . . Slashing . | . . . Piercing . | . . . Sneak Attacks . | . . . Combat Hostiles . | . . . Follow-up Attacks . | . . . Damage Inflicted 1058 | . 22 1036 Guns . | . . . Cannons 7 | . . 7 Explosions 1028 | . . 1028 Melee . | . . . Ramming 23 | . 22 1 Kinetic 7 | . . 7 Thermal . | . . . Explosive 1028 | . . 1028 Electromagnetic . | . . . Impact . | . . . Slashing . | . . . Piercing . | . . . Highest Corruption . | . . . Average Corruption . | . . . Corruption Purged . | . . . Overload Shots . | . . . Overflow Damage 7 | . . 7 Projectiles . | . . . Explosions 7 | . . 7 Melee . | . . . Knockbacks 1 | . 1 . Impact 1 | . 1 . Kinetic . | . . . Secondary . | . . . Self-Inflicted Damage 12 | . . 12 Shots 2 | . . 2 Rammed 14 | . 13 1 Targets Rammed 16 | . 15 1 Kicked . | . . . Crushed 2 | . 2 . Highest Temperature . | . . . Average Temperature . | . . . Received Heat Transfer 201 | . 138 63 Siege Activations . | . . . Robots Corrupted . | . . . Combat Hostiles . | . . . Parts Fried . | . . . Impact Corruptions . | . . . Robots Melted . | . . . Combat Hostiles . | . . . Parts Melted . | . . . Heat Transferred . | . . . Parts Sabotaged . | . . . Parts Stolen . | . . . Parts Stripped . | . . . Power Chain Reactions . | . . . Missiles Intercepted . | . . . Alert | -11 -10 -9 ------- Run | Scr Mat Mat Peak Influence 327 | . 65 327 Initial 19 | . . 19 Average 75 | . 9 128 Maximum Alert Level 1 | . . 1 Low Security (%) 91 | 100 100 84 Level 1 8 | . . 15 Level 2 . | . . . Level 3 . | . . . Level 4 . | . . . Level 5 . | . . . High Security . | . . . Max Security . | . . . Squads Dispatched 3 | . . 3 Investigation 1 | . . 1 Extermination . | . . . Reinforcement 2 | . . 2 Assault . | . . . Garrison . | . . . Intercept . | . . . Construction Impeded 1 | . . 1 Haulers Reinforced . | . . . Stealth | -11 -10 -9 --------- Run | Scr Mat Mat Distress Signals 1 | . . 1 Communications Jammed . | . . . Distress Signals . | . . . Times Spotted 18 | . 7 11 Peak Tracking Total 5 | . 4 5 Tactical Retreats . | . . . Traps | -11 -10 -9 ------- Run | Scr Mat Mat Traps Triggered . | . . . Indirectly . | . . . Trap Hack Attempts . | . . . Triggered . | . . . Disarmed . | . . . Reprogrammed . | . . . Reused . | . . . Traps Extracted . | . . . Installed . | . . . Triggered . | . . . Machines | -11 -10 -9 ---------- Run | Scr Mat Mat Machines Disabled 1 | . . 1 Max in Single Turn 1 | . . 1 Machines Sabotaged . | . . . Garrisons Compromised . | . . . Overloaded Fab Kills . | . . . Fab Network Shutdowns . | . . . Hacking | -11 -10 -9 --------- Run | Scr Mat Mat Machines Accessed 3 | . 1 2 Terminals 3 | . 1 2 Fabricators . | . . . Repair Stations . | . . . Recycling Units . | . . . Scanalyzers . | . . . Garrison Access . | . . . Total Hacks 5 | . 1 4 Successful 1 | . 1 . Failed 4 | . . 4 Catastrophic 1 | . . 1 Database Lockouts . | . . . Manual 5 | . 1 4 Terminals 5 | . 1 4 Fabricators . | . . . Repair Stations . | . . . Recycling Units . | . . . Scanalyzers . | . . . Garrison Access . | . . . Terminal Hacks 1 | . 1 . Branch Access Points 1 | . 1 . Fabricator Hacks . | . . . Repair Station Hacks . | . . . Recycling Unit Hacks . | . . . Scanalyzer . | . . . Garrison Access Hacks . | . . . Unauthorized Hacks . | . . . Terminals . | . . . Fabricators . | . . . Repair Stations . | . . . Recycling Units . | . . . Scanalyzers . | . . . Garrison Access . | . . . Data Cores Recovered . | . . . Used . | . . . Hacking Detections 3 | . 1 2 Full Trace Events 1 | . . 1 Feedback Events . | . . . Feedback Blocked . | . . . Robot Schematics Acquired . | . . . Robots Built . | . . . Matter . | . . . Time . | . . . Total Robot Build Rating . | . . . Part Schematics Acquired . | . . . Parts Built . | . . . Matter . | . . . Time . | . . . Total Part Build Rating . | . . . Parts Repaired . | . . . Time . | . . . Parts Recycled . | . . . Recycled Matter . | . . . Retrieved Matter . | . . . Retrieved Components . | . . . Parts Scanalyzed . | . . . Part Schematics Acquired . | . . . Parts Damaged . | . . . Bothacking | -11 -10 -9 ------------ Run | Scr Mat Mat Used RIF Installer . | . . . Robots Hacked . | . . . Non-combat . | . . . Combat . | . . . Robot Hacks Applied . | . . . Relay Couplers Released . | . . . Robots Rewired . | . . . Allies Hacked . | . . . Hacks Repelled . | . . . Allies | -11 -10 -9 -------- Run | Scr Mat Mat Total Allies . | . . . Largest Group . | . . . Highest-Rated Group . | . . . Highest-Rated Ally . | . . . Total Orders . | . . . Ally Attacks . | . . . Total Damage . | . . . Kills . | . . . Allies Corrupted . | . . . Allies Melted . | . . . Intel | -11 -10 -9 ------- Run | Scr Mat Mat Robot Analysis Total . | . . . Derelict Logs Recovered . | . . . Drone Launches . | . . . Drone Recoveries . | . . . Exploration | -11 -10 -9 ------------- Run | Scr Mat Mat Turns Passed 599 | 28 236 335 Spaces Moved 331 | 18 133 180 Core . | . . . Treads 331 | 18 133 180 Legs . | . . . Wheels . | . . . Hover . | . . . Flight . | . . . Fastest Speed 160 | 160 160 160 Average Speed 160 | 160 160 160 Slowest Speed 160 | 160 160 160 Overloaded Moves . | . . . Propulsion Burnouts . | . . . Robots Hopped . | . . . Cave-ins Triggered . | . . . Exploration Rate (%) 20 | 3 30 27 Regions Visited 2 Branch Regions . Pre-discovered Areas . | . . . Known Exits Taken 2 | 1 1 . Unknown Exits Taken . | . . . Scrap Searched . | . . . Spaces Dug . | . . . Terrain Destroyed 88 | . . 88 Melee . | . . . Projectile . | . . . AOE 88 | . . 88 Terrain Rammed . | . . . Walls Destroyed . | . . . Machines Disabled . | . . . Actions | -11 -10 -9 --------- Run | Scr Mat Mat Total 368 | 17 147 204 Wait . | . . . Move 329 | 17 132 180 Hop . | . . . Pick Up . | . . . Fast Attach . | . . . Attach 1 | . . 1 Detach . | . . . Swap . | . . . Drop . | . . . Fire 22 | . . 22 Melee . | . . . Ram . | . . . Kick . | . . . Crush 16 | . 15 1 Escape Stasis . | . . . Rewire . | . . . Trap . | . . . Miscellaneous . | . . . Route ------- -11/Scrapyard -10/Materials (discovered 3 exits: *Mat / Min x2) -9/Materials (discovered 1 exit: *Min) History --------- Turn | Location | Event 9 | -11/Scrapyard | Identified exit to Materials 9 | -11/Scrapyard | Discovered exit to Materials (range 13) 29 | -11/Scrapyard | Entered Materials 29 | -10/Materials | Evolved 1 slot: Propulsion x1 170 | -10/Materials | Identified exit to Mines 220 | -10/Materials | Identified exit to Materials 220 | -10/Materials | Discovered exit to Materials (range 16) 265 | -10/Materials | Entered another Materials area 265 | -9/Materials | Evolved 2 slots: Propulsion x1, Utility x1 315 | -9/Materials | Build established: Hacker-Mutant 564 | -9/Materials | Identified exit to Mines 564 | -9/Materials | Discovered exit to Mines (range 9) 600 | -9/Materials | Self-destructed Last Messages --------------- 00557_ S-10 Pest destroyed. 00558_ The unstable cave ceiling collapses. 00564_ EXIT=FOUND: MINES 00565_ The unstable cave ceiling collapses. 00566_ U-05 Engineer builds a Door. 00567_ The unstable cave ceiling collapses. 00570_ S-10 Pest destroyed. 00571_ Acquired 2 matter. 00571_ U-05 Engineer lays Concrete. [You open your loot box...] [Congratulations on your very own Structural Scanner!] [You open your loot box...] [Congratulations on your very own Aerolev Unit!] 00572_ U-05 Engineer lays Concrete. 00589_ The unstable cave ceiling collapses. 00589_ U-05 Engineer lays Concrete. 00593_ K-01 Serf collects debris. 00594_ U-05 Engineer lays Concrete. 00597_ K-01 Serf collects debris. 00598_ U-05 Engineer lays Concrete. Map ----- +----------------------------------------------------+ | ?????????????????????????????????????????????????? | | ?????????????????????????????????????????????????? | | ?????????????????????????????????????????????????? | | ?????????????????????????????????????????????????? | | ?????????????????????????????????????????????????? | | ?????????????????????????????????????????????????? | | ?????????????????????????????????????????????????? | | ?????????????????????????????????????????????????? | | ?????????????????????????????????????????????????? | | ?????????????????????????????????????????????????? | | ?????????????????????????????????????????????????? | | ?????????????????????????????????????????????????? | | ?????????????????????????????????????????????????? | | ????????????????????????##+###???????????????????? | | ???????????????????????? ###?????????????????? | | ???????????????????????? ??????????????????? | | ???????????????????????? Y ??????????????????? | | ????????????????#?###### ???????????????????? | | ????????????????# # ????????????????????? | | ????????????????# ## #????????????????????? | | ????????????????# """ ## #????????????????????? | | ????????????????# """ ## #????????????????????? | | ????????????????# """ ## #????????????????????? | | ????????????????? # ##???????????????????? | | ???????????????###### # #???????????????????? | | ???????????????# @ #???????????????????? | | ??????########?# + ""????????????? | | ??????#"" " ""?# T k # ??????????? | | ??????# " " " ?# #??? ??????????? | | ##### ## ##??????? ??????????? | | " #????????????????????? | | > "" #????????????????????? | | k u """ ""???????????????????? | | ??##### # """ R"??????????????????? | | ??????########## "" """??????????????????? | | ??????????##### ###??????????????????? | | ????+ #????????????????????? | | ???????######### ## ## #????????????????????? | | ?????????????####+######? #????????????????????? | | ?????????????# #??? #????????????????????? | | ?????????????# """ #??? ?????????????????????? | | ??????????#### """ #???????????????????????????? | | ????????### # """ #???????????????????????????? | | ??????### # #???????????????????????????? | | #### ####+####### #????????????????????? | | #????????????????????? | | #????????????????????? | | #????????????????????? | | ### # ## ##########????????????????????? | | #?????##### # # # #????????????????????????? | +----------------------------------------------------+ Best States ------------- Heat Dissipation 28 Energy Generation 12 Energy Capacity 265 Matter Stores 244 Matter Capacity 300 Sight Range 16 Terrain Scan Density 60 Resistance: KI 35 Resistance: TH 35 Resistance: EX 35 Resistance: EM 35 Resistance: I 35 Resistance: S 35 Resistance: P 35 Evasion (%) 40 Recoil Reduction 2 Offensive Hacking 20 Item Schematics ----------------- None Robot Schematics ------------------ None Fabricated ------------ Nothing Alien Tech Used ----------------- None Achievements -------------- None Challenges ------------ None Cogshop Purchases (12) ------------------------ Spk. Treads (874) Spk. Treads (874) Grenade Launcher (Loot Box) Seismic Analyzer (Loot Box) Lrn. Tractor Beam (Loot Box) Hover Unit (Loot Box) Imp. Ion Engine (699) Welding Torch (Loot Box) Mic. Nuclear Core (Loot Box) Flak Cannon (809) Structural Scanner (Loot Box) Aerolev Unit (Loot Box) Game ------ Seed BottomlessFlakMeganuke Manual? 0 Play Time 00:07:45 Cumulative 108.3 hours Start 2021.02.17 @ 00:13:52 End 2021.02.17 @ 00:21:17 Sessions 1 Manual Loads 0 Difficulty Explorer Special Mode AFD2019/Pay2Buy Game No. 33 Rogue 0 Adventurer 0 Explorer 33 Win Type - Total 8 Types 7/0/1/0/0/0/0/0/0 Lore% 47 Gallery% 69 Achievement% 59 Wizard Run 0 Options --------- ASCII 0 Keyboard 0 Movement Arrows Keybinds 0 Fullscreen 1 Font 18/Smallcaps Map View 76x50 Tactical HUD 1 Map Filters NONE Filters NONE Steam 1 RUN: 86bfaf41-362d-4391-9a54-b4fce948f4cf